bitfinex/quotes_BTCUSD_20240719
["timestamp","ask_amount","ask_price","bid_price","bid_amount"]
[1721407251638,0.51378571,66537.0,66523.0,0.300644]
[1721407251639,0.51478571,66537.0,66536.0,0.47079417]
[1721407251839,0.51578571,66537.0,66536.0,0.93036474]
[1721407252045,0.51578571,66537.0,66536.0,0.93977198]
[1721407252249,0.51378571,66537.0,66536.0,1.22636098]
[1721407252563,0.51378571,66537.0,66536.0,0.32050724]
[1721407252789,0.51278571,66537.0,66536.0,0.30650724]
[1721407252987,0.51278571,66537.0,66536.0,0.30750724]
[1721407253890,0.51278571,66537.0,66536.0,0.45780124]
[1721407254301,0.51378571,66537.0,66536.0,0.45780124]
[1721407254505,0.51378571,66537.0,66536.0,0.30650724]
[1721407254686,0.51378571,66537.0,66536.0,0.31350724]
[1721407254889,0.51378571,66537.0,66536.0,0.46380124]
[1721407255075,0.51378571,66537.0,66536.0,0.46880124]
[1721407255491,0.51378571,66537.0,66536.0,0.76939024]
[1721407255855,0.51378571,66537.0,66536.0,0.46880124]
[1721407256468,0.51378571,66537.0,66536.0,0.31850724]
[1721407256674,0.51378571,66537.0,66536.0,0.02140724]
[1721407257704,0.59698571,66537.0,66536.0,0.012]
[1721407258778,0.59598571,66537.0,66529.0,0.00279399]
[1721407259003,0.51278571,66537.0,66529.0,0.15717573]
[1721407259178,0.51278571,66537.0,66536.0,0.001]
[1721407259767,0.51278571,66537.0,66527.0,0.00279399]
[1721407259984,0.1075,66536.0,66518.0,0.51586344]
[1721407260190,0.1075,66536.0,66522.0,0.04364377]
[1721407260395,0.1075,66536.0,66516.0,0.19020944]
[1721407260396,0.07717479,66529.0,66523.0,0.00950639]
[1721407260606,0.26950696,66528.0,66510.0,0.04364377]
[1721407260839,0.26950696,66528.0,66511.0,0.00959414]
[1721407261246,0.26950696,66528.0,66512.0,0.00959225]
[1721407261452,0.26950696,66528.0,66507.0,0.150359]
[1721407261716,0.11512522,66528.0,66523.0,0.001]
[1721407261918,0.008,66529.0,66524.0,0.00279399]
[1721407262069,0.008,66529.0,66524.0,0.00950527]
[1721407262230,0.002,66536.0,66528.0,0.2971]
[1721407262429,0.01353899,66536.0,66528.0,0.2971]
[1721407262629,0.49584,66537.0,66529.0,0.00946904]
[1721407263477,0.50951312,66537.0,66529.0,0.00946904]
[1721407263681,0.50951312,66537.0,66520.0,0.2971]
[1721407263904,0.50951312,66537.0,66530.0,0.00946179]
[1721407264107,0.50951312,66537.0,66529.0,0.45148174]
[1721407264303,0.50951312,66537.0,66531.0,0.15975954]
[1721407264509,0.50951312,66537.0,66533.0,0.07717479]
[1721407264675,0.51951312,66537.0,66535.0,0.150295]
[1721407264868,0.51933223,66537.0,66535.0,0.150295]
[1721407265080,0.51933223,66537.0,66536.0,0.00941832]
[1721407265304,0.51933223,66537.0,66534.0,0.0791]
[1721407265479,0.51933223,66537.0,66536.0,0.00941832]
[1721407265700,0.51933223,66537.0,66533.0,0.001]
[1721407265701,0.52933223,66537.0,66533.0,0.001]
[1721407265905,0.52933223,66537.0,66535.0,0.001]
[1721407265906,0.53933223,66537.0,66535.0,0.001]
[1721407266167,0.52933223,66537.0,66535.0,0.001]
[1721407266488,0.53933223,66537.0,66535.0,0.001]
[1721407267314,0.53933223,66537.0,66534.0,0.001]
[1721407267315,0.51933223,66537.0,66534.0,0.001]
[1721407267771,0.51933223,66537.0,66522.0,0.00279399]
[1721407267772,0.186,66536.0,66522.0,0.00279399]
[1721407268102,0.186,66536.0,66514.0,0.00279399]
[1721407268312,0.186,66536.0,66516.0,0.00279399]
[1721407268519,0.186,66536.0,66516.0,0.15717573]
[1721407268738,0.186,66536.0,66535.0,0.001]
[1721407268935,0.186,66536.0,66517.0,0.15313099]
[1721407269139,0.186,66536.0,66535.0,0.00943693]
[1721407269449,0.186,66536.0,66522.0,0.001]
[1721407269450,0.196,66536.0,66522.0,0.001]
[1721407269822,0.196,66536.0,66535.0,0.00943693]
[1721407270065,0.196,66536.0,66535.0,0.001]
[1721407270466,0.196,66536.0,66522.0,0.001]
[1721407270677,0.15438174,66535.0,66522.0,0.001]
[1721407271286,0.15438174,66535.0,66516.0,0.001]
[1721407271529,0.15438174,66535.0,66523.0,0.00952736]
[1721407271741,0.15438174,66535.0,66516.0,0.00279399]
[1721407271912,0.15438174,66535.0,66522.0,0.001]
[1721407272111,0.15438174,66535.0,66516.0,0.00279399]
[1721407272364,0.15438174,66535.0,66523.0,0.00952736]
[1721407272574,0.16638174,66535.0,66524.0,0.00279399]
[1721407272745,0.16638174,66535.0,66518.0,0.00279399]
[1721407272988,0.012,66535.0,66525.0,0.00951287]
[1721407273200,0.012,66535.0,66526.0,0.00279399]
[1721407273403,0.012,66535.0,66529.0,0.150309]
[1721407273614,0.012,66535.0,66531.0,0.150305]
[1721407273826,0.012,66535.0,66532.0,0.00279399]
[1721407274042,0.012,66535.0,66532.0,0.00946214]
[1721407274243,0.021,66535.0,66532.0,0.00946214]
[1721407274384,0.021,66535.0,66530.0,0.300615]
[1721407274551,0.50933223,66537.0,66536.0,0.150294]
[1721407274750,0.50933223,66537.0,66533.0,0.1503]
[1721407274951,0.50933223,66537.0,66534.0,0.150299]
[1721407274952,0.011,66535.0,66534.0,0.150299]
[1721407275217,0.50933223,66537.0,66536.0,0.450883]
[1721407275429,0.50933223,66537.0,66536.0,1.28794274]
[1721407275599,0.50933223,66537.0,66536.0,1.38814274]
[1721407276278,0.49565911,66537.0,66536.0,1.38814274]
[1721407276482,0.49565911,66537.0,66536.0,1.08755374]
[1721407276710,0.49665911,66537.0,66536.0,1.39914274]
[1721407276910,0.49665911,66537.0,66536.0,1.41214274]
[1721407276911,0.49765911,66537.0,66536.0,1.41214274]
[1721407278965,0.49765911,66537.0,66536.0,1.11155374]
[1721407279352,0.49765911,66537.0,66536.0,1.41214274]
[1721407281323,0.49765911,66537.0,66536.0,0.51037574]
[1721407281547,0.49765911,66537.0,66536.0,0.81096474]
[1721407281786,0.49765911,66537.0,66536.0,1.41214274]
[1721407282164,0.49765911,66537.0,66536.0,1.52531346]
[1721407282545,0.49765911,66537.0,66536.0,1.56919951]
[1721407282967,0.49765911,66537.0,66536.0,1.52531346]
[1721407283186,0.49765911,66537.0,66536.0,1.56897758]
[1721407283758,0.49765911,66537.0,66536.0,1.52510907]
[1721407283910,0.49765911,66537.0,66536.0,1.53452785]
[1721407284853,0.49765911,66537.0,66536.0,1.57839636]
[1721407285261,0.49765911,66537.0,66536.0,1.53452785]
[1721407285417,0.49765911,66537.0,66536.0,2.66511685]
[1721407285615,0.49765911,66537.0,66536.0,3.06403867]
[1721407285843,0.49765911,66537.0,66536.0,2.99820227]
[1721407286044,0.49765911,66537.0,66536.0,3.0859719]
[1721407286291,0.49765911,66537.0,66536.0,2.66511685]
[1721407286550,0.49765911,66537.0,66536.0,1.53448638]
[1721407286926,0.49765911,66537.0,66536.0,1.77068638]
[1721407287129,0.49765911,66537.0,66536.0,1.81457787]
[1721407287331,0.49765911,66537.0,66536.0,1.58898638]
[1721407287544,0.49765911,66537.0,66536.0,0.03341878]
[1721407287751,0.49765911,66537.0,66536.0,0.62926474]
[1721407287954,0.49765911,66537.0,66536.0,0.94011339]
[1721407288198,0.49765911,66537.0,66536.0,1.12391339]
[1721407288335,0.49765911,66537.0,66536.0,1.41350239]
[1721407288336,0.49665911,66537.0,66536.0,1.41350239]
[1721407288749,0.49665911,66537.0,66536.0,1.41750239]
[1721407289009,0.49565911,66537.0,66536.0,1.10391339]
[1721407289162,0.49565911,66537.0,66536.0,1.09991339]
[1721407289363,0.49665911,66537.0,66536.0,1.10591339]
[1721407289567,0.49765911,66537.0,66536.0,1.41750239]
[1721407289821,0.49665911,66537.0,66536.0,1.41150239]
[1721407290254,0.49765911,66537.0,66536.0,1.12391339]
[1721407290458,0.49765911,66537.0,66536.0,1.42450239]
[1721407290658,0.49665911,66537.0,66536.0,1.41150239]
[1721407291067,0.49765911,66537.0,66536.0,1.42550239]
[1721407291269,0.49765911,66537.0,66536.0,2.35785613]
[1721407291645,0.49665911,66537.0,66536.0,2.34685613]
[1721407292049,0.49765911,66537.0,66536.0,2.35885613]
[1721407292250,0.49665911,66537.0,66536.0,2.34485613]
[1721407292411,0.49665911,66537.0,66536.0,2.33285613]
[1721407292617,0.49865911,66537.0,66536.0,1.5404009]
[1721407293289,0.49765911,66537.0,66536.0,1.5264009]
[1721407293598,0.49865911,66537.0,66536.0,1.5404009]
[1721407293717,0.49865911,66537.0,66536.0,0.64352439]
[1721407293916,0.49865911,66537.0,66536.0,0.94411339]
[1721407294173,0.49865911,66537.0,66536.0,1.24470239]
[1721407294573,0.49865911,66537.0,66536.0,0.64352439]
[1721407294770,0.49865911,66537.0,66536.0,0.94411339]
[1721407294997,0.49865911,66537.0,66536.0,1.24470239]
[1721407295397,0.49865911,66537.0,66536.0,1.35668933]
[1721407295813,0.49865911,66537.0,66536.0,1.3570565]
[1721407296751,0.49865911,66537.0,66536.0,1.24470239]
[1721407297538,0.49865911,66537.0,66536.0,1.35725991]
[1721407297751,0.49865911,66537.0,66536.0,1.05667091]
[1721407297957,0.49865911,66537.0,66536.0,0.34293539]
[1721407298162,0.49865911,66537.0,66536.0,0.64352439]
[1721407298328,0.49865911,66537.0,66536.0,0.94411339]
[1721407298850,0.49865911,66537.0,66536.0,1.24470239]
[1721407299635,0.49865911,66537.0,66536.0,0.94411339]
[1721407300234,0.49865911,66537.0,66536.0,1.35822823]
[1721407301291,0.49865911,66537.0,66536.0,1.05763923]
[1721407301512,0.49865911,66537.0,66536.0,0.30616723]
[1721407301752,0.49865911,66537.0,66536.0,0.03825965]
[1721407301753,0.60085911,66537.0,66536.0,0.03825965]
[1721407301882,0.60085911,66537.0,66536.0,0.028]
[1721407302522,0.59563241,66537.0,66535.0,0.00482972]
[1721407302720,0.59563241,66537.0,66536.0,0.004]
[1721407302919,0.58481706,66537.0,66536.0,0.01]
[1721407303124,0.58481706,66537.0,66536.0,0.006]
[1721407303301,0.58481706,66537.0,66536.0,0.90585374]
[1721407303302,0.47498269,66537.0,66536.0,0.90585374]
[1721407303484,0.47498269,66537.0,66536.0,1.33066854]
[1721407303485,0.47798269,66537.0,66536.0,1.33066854]
[1721407304054,0.47798269,66537.0,66536.0,0.72949054]
[1721407304055,0.44617288,66537.0,66536.0,0.72949054]
[1721407304467,0.44210122,66537.0,66536.0,1.03007954]
[1721407304841,0.4303773,66537.0,66536.0,1.03490926]
[1721407305050,0.4303773,66537.0,66536.0,0.92095863]
[1721407305245,0.41047239,66537.0,66536.0,1.03447639]
[1721407305618,0.40192945,66537.0,66536.0,1.04047639]
[1721407305824,0.40192945,66537.0,66536.0,1.34106539]
[1721407306035,0.40492945,66537.0,66536.0,1.34106539]
[1721407306487,0.40192945,66537.0,66536.0,1.34106539]
[1721407306691,0.40192945,66537.0,66536.0,1.04047639]
[1721407306896,0.40192945,66537.0,66536.0,1.04447639]
[1721407307093,0.40192945,66537.0,66536.0,1.34506539]
[1721407307311,0.40192945,66537.0,66536.0,1.04447639]
[1721407307637,0.40192945,66537.0,66536.0,1.34506539]
[1721407307908,0.40192945,66537.0,66536.0,1.04447639]
[1721407308268,0.41192945,66537.0,66536.0,1.04444974]
[1721407308652,0.41192945,66537.0,66536.0,0.74386074]
[1721407309056,0.41192945,66537.0,66536.0,0.93095863]
[1721407309471,0.41192945,66537.0,66536.0,1.04385508]
[1721407310013,0.42192945,66537.0,66536.0,0.93095863]
[1721407310378,0.60832945,66537.0,66536.0,0.02510489]
[1721407310579,0.60832945,66537.0,66536.0,0.01482972]
[1721407310779,0.60832945,66537.0,66536.0,0.01]
[1721407311681,0.60832945,66537.0,66536.0,0.01627622]
[1721407312086,0.42192945,66537.0,66536.0,0.01727622]
[1721407313261,0.43092945,66537.0,66536.0,0.01127622]
[1721407313598,0.43092945,66537.0,66536.0,0.01527622]
[1721407314931,0.43092945,66537.0,66536.0,0.01400384]
[1721407315524,0.43092945,66537.0,66536.0,0.01679783]
[1721407315733,0.43092945,66537.0,66536.0,0.01400384]
[1721407315927,0.43092945,66537.0,66536.0,0.005]
[1721407316955,0.43092945,66537.0,66536.0,0.0004741]
[1721407317166,0.43092945,66537.0,66524.0,0.00279399]
[1721407317167,0.1906,66536.0,66524.0,0.00279399]
[1721407317376,0.1906,66536.0,66522.0,0.00482972]
[1721407317377,0.084,66534.0,66522.0,0.00482972]
[1721407317598,0.0244807,66533.0,66522.0,0.00482972]
[1721407317997,0.03283228,66532.0,66522.0,0.00482972]
[1721407318220,0.0328323,66531.0,66522.0,0.00482972]
[1721407318556,0.084,66534.0,66522.0,0.15921146]
[1721407318712,0.084,66534.0,66523.0,0.00279399]
[1721407318910,0.084,66534.0,66524.0,0.001]
[1721407318911,0.006,66533.0,66524.0,0.001]
[1721407319435,0.003,66531.0,66525.0,0.00279399]
[1721407319938,0.003,66531.0,66526.0,0.15438174]
[1721407320277,0.013,66531.0,66527.0,0.00279399]
[1721407320701,0.013,66531.0,66530.0,0.150308]
[1721407320900,0.013,66531.0,66530.0,0.60809973]
[1721407321167,0.013,66531.0,66530.0,0.15438174]
[1721407321378,0.013,66531.0,66530.0,0.15717573]
[1721407321584,0.01,66531.0,66530.0,0.15438174]
[1721407321794,0.016,66531.0,66530.0,0.15438174]
[1721407321993,0.026,66531.0,66530.0,0.15438174]
[1721407322182,0.02,66531.0,66530.0,0.15438174]
[1721407322566,0.024,66531.0,66530.0,0.15438174]
[1721407322864,0.024,66531.0,66530.0,0.30468974]
[1721407323199,0.024,66531.0,66530.0,0.90592174]
[1721407323349,0.034,66531.0,66530.0,0.98812174]
[1721407323548,0.04737209,66531.0,66530.0,1.29356746]
[1721407323752,0.04737209,66531.0,66530.0,1.69998346]
[1721407323949,0.034,66531.0,66530.0,1.80010936]
[1721407324328,0.43092945,66537.0,66536.0,1.052061]
[1721407324531,0.43092945,66537.0,66536.0,1.14205374]
[1721407324722,0.43092945,66537.0,66536.0,1.44264274]
[1721407325778,0.43192945,66537.0,66536.0,1.15105374]
[1721407325989,0.43292945,66537.0,66536.0,1.45264274]
[1721407326189,0.44292945,66537.0,66536.0,1.45264274]
[1721407326391,0.44392945,66537.0,66536.0,1.46364274]
[1721407327359,0.44292945,66537.0,66536.0,1.15305374]
[1721407327566,0.44392945,66537.0,66536.0,0.92685374]
[1721407327917,0.44392945,66537.0,66536.0,0.62626474]
[1721407328120,0.44292945,66537.0,66536.0,0.61626474]
[1721407328276,0.44092945,66537.0,66536.0,0.90585374]
[1721407328643,0.45192945,66537.0,66536.0,0.92585374]
[1721407328960,0.45192945,66537.0,66536.0,0.90585374]
[1721407328961,0.45092945,66537.0,66536.0,0.90585374]
[1721407329204,0.45092945,66537.0,66536.0,0.91485374]
[1721407329618,0.45092945,66537.0,66536.0,0.90585374]
[1721407329794,0.45092945,66537.0,66536.0,0.60526474]
[1721407329993,0.45192945,66537.0,66536.0,0.61526474]
[1721407330198,0.45192945,66537.0,66536.0,0.01]
[1721407331082,0.45192945,66537.0,66536.0,0.02]
[1721407331083,0.45292945,66537.0,66536.0,0.02]
[1721407331283,0.45192945,66537.0,66536.0,0.01]
[1721407331481,0.45292945,66537.0,66536.0,0.021]
[1721407332006,0.45292945,66537.0,66536.0,0.011]
[1721407332007,0.45192945,66537.0,66536.0,0.011]
[1721407332186,0.45092945,66537.0,66533.0,0.00482972]
[1721407332415,0.45092945,66537.0,66536.0,0.015]
[1721407332416,0.45292945,66537.0,66536.0,0.015]
[1721407332951,0.45292945,66537.0,66536.0,0.019]
[1721407333156,0.45192945,66537.0,66536.0,0.013]
[1721407334159,0.45192945,66537.0,66533.0,0.00482972]
[1721407334160,0.45092945,66537.0,66533.0,0.00482972]
[1721407334562,0.45192945,66537.0,66533.0,0.01]
[1721407334760,0.45192945,66537.0,66533.0,0.006]
[1721407335169,0.45192945,66537.0,66536.0,0.004]
[1721407335423,0.45192945,66537.0,66533.0,0.006]
[1721407335810,0.45192945,66537.0,66533.0,0.01]
[1721407336136,0.45192945,66537.0,66524.0,0.00279399]
[1721407336137,0.18597479,66536.0,66524.0,0.00279399]
[1721407336368,0.0815,66535.0,66519.0,0.1]
[1721407336556,0.03304291,66534.0,66519.0,0.1]
[1721407336960,0.03304291,66534.0,66520.0,0.00279399]
[1721407337090,0.03304291,66534.0,66519.0,0.1]
[1721407337493,0.03304291,66534.0,66519.0,0.15438174]
[1721407337698,0.03304291,66534.0,66520.0,0.00279399]
[1721407338121,0.04304291,66534.0,66520.0,0.00379399]
[1721407338485,0.0815,66535.0,66520.0,0.00279399]
[1721407338686,0.03293727,66534.0,66520.0,0.00279399]
[1721407338899,0.04293727,66534.0,66520.0,0.00279399]
[1721407339104,0.0815,66533.0,66519.0,0.001]
[1721407339302,0.14171116,66532.0,66519.0,0.001]
[1721407339539,0.1088,66532.0,66520.0,0.001]
[1721407339658,0.10861911,66532.0,66520.0,0.001]
[1721407340695,0.11761911,66532.0,66520.0,0.001]
[1721407341137,0.11761911,66532.0,66521.0,0.00279399]
[1721407341344,0.009,66532.0,66524.0,0.150321]
[1721407341516,0.009,66532.0,66525.0,0.15717573]
[1721407341880,0.009,66532.0,66526.0,0.150316]
[1721407342012,0.009,66532.0,66527.0,0.15717573]
[1721407342219,0.009,66532.0,66530.0,0.150306]
[1721407342438,0.009,66532.0,66531.0,0.00279399]
[1721407342642,0.009,66532.0,66530.0,0.00279399]
[1721407342849,0.009,66532.0,66531.0,0.90590874]
[1721407342850,0.019,66532.0,66531.0,0.90590874]
[1721407343057,0.01,66532.0,66531.0,0.90590874]
[1721407343278,0.01,66532.0,66531.0,1.01170874]
[1721407343502,0.01,66532.0,66531.0,1.31231974]
[1721407343707,0.019,66532.0,66531.0,1.31231974]
[1721407344239,0.01,66532.0,66531.0,1.31231974]
[1721407344455,0.01,66532.0,66531.0,1.40141974]
[1721407344651,0.014,66532.0,66531.0,1.40141974]
[1721407344801,0.101,66532.0,66531.0,1.40141974]
[1721407345007,0.1,66532.0,66531.0,1.88358718]
[1721407345310,0.101,66532.0,66531.0,1.9356452]
[1721407345534,0.45092945,66537.0,66536.0,1.052061]
[1721407345747,0.45092945,66537.0,66536.0,0.90585374]
[1721407345945,0.45092945,66537.0,66536.0,0.60526474]
[1721407346152,0.45092945,66537.0,66536.0,0.30467574]
[1721407346758,0.45092945,66537.0,66534.0,0.00482972]
[1721407347008,0.45092945,66537.0,66534.0,0.15921146]
[1721407347496,0.45192945,66537.0,66536.0,0.008]
[1721407347920,0.45092945,66537.0,66534.0,0.30950946]
[1721407348126,0.45192945,66537.0,66536.0,0.006]
[1721407348362,0.45292945,66537.0,66536.0,0.006]
[1721407348841,0.45292945,66537.0,66534.0,0.16621146]
[1721407348842,0.45192945,66537.0,66534.0,0.01182972]
[1721407349284,0.45292945,66537.0,66534.0,0.01782972]
[1721407349943,0.45192945,66537.0,66534.0,0.01182972]
[1721407350414,0.45192945,66537.0,66534.0,0.00482972]
[1721407350415,0.45092945,66537.0,66534.0,0.00482972]
[1721407350788,0.45192945,66537.0,66535.0,0.300592]
[1721407351000,0.45192945,66537.0,66536.0,0.450883]
[1721407351202,0.45092945,66537.0,66536.0,0.90585374]
[1721407351560,0.45192945,66537.0,66536.0,0.90585374]
[1721407351762,0.45292945,66537.0,66536.0,0.91185374]
[1721407351960,0.45192945,66537.0,66536.0,0.90585374]
[1721407352361,0.45292945,66537.0,66536.0,0.90585374]
[1721407352746,0.45092945,66537.0,66536.0,0.90585374]
[1721407353152,0.45192945,66537.0,66536.0,0.90585374]
[1721407353377,0.45092945,66537.0,66536.0,0.90685374]
[1721407353855,0.45092945,66537.0,66536.0,0.90585374]
[1721407354256,0.45092945,66537.0,66536.0,0.90985374]
[1721407354953,0.45092945,66537.0,66536.0,0.91285374]
[1721407355564,0.45092945,66537.0,66536.0,0.16138174]
[1721407355968,0.45092945,66537.0,66536.0,0.007]
[1721407356173,0.45092945,66537.0,66522.0,0.04406784]
[1721407356379,0.45092945,66537.0,66521.0,0.150328]
[1721407356729,0.03295398,66536.0,66521.0,0.150328]
[1721407356934,0.45092945,66537.0,66521.0,0.150328]
[1721407357141,0.03295538,66536.0,66520.0,0.15033]
[1721407357341,0.03295538,66536.0,66517.0,0.1017]
[1721407357342,0.11013017,66536.0,66517.0,0.1017]
[1721407357588,0.03295538,66535.0,66516.0,0.150338]
[1721407357964,0.07717479,66536.0,66516.0,0.150338]
[1721407358319,0.07717479,66536.0,66517.0,0.150336]
[1721407358320,0.03299221,66535.0,66517.0,0.150336]
[1721407358516,0.03299221,66535.0,66524.0,0.00482972]
[1721407358713,0.07717479,66536.0,66527.0,0.001]
[1721407358714,0.03301161,66534.0,66527.0,0.001]
[1721407358913,0.03301161,66533.0,66527.0,0.001]
[1721407359158,0.03301161,66532.0,66527.0,0.001]
[1721407359330,0.022,66536.0,66527.0,0.002]
[1721407359547,0.03301993,66535.0,66527.0,0.001]
[1721407359748,0.04501993,66535.0,66527.0,0.001]
[1721407359922,0.03301993,66534.0,66524.0,0.00582972]
[1721407360129,0.008,66533.0,66524.0,0.00675372]
[1721407360703,0.06149295,66533.0,66524.0,0.00675372]
[1721407360904,0.1898,66532.0,66524.0,0.00575372]
[1721407361105,0.012,66535.0,66524.0,0.00575372]
[1721407361106,0.07717479,66527.0,66524.0,0.00575372]
[1721407361303,0.0811,66525.0,66523.0,0.28310146]
[1721407361505,0.0811,66525.0,66505.0,0.7926]
[1721407361506,0.14172089,66524.0,66505.0,0.7926]
[1721407361830,0.03302089,66523.0,66505.0,0.15438174]
[1721407362448,0.03302089,66523.0,66502.0,0.26217479]
[1721407362646,0.03302089,66523.0,66503.0,0.15438174]
[1721407362848,0.03302089,66523.0,66504.0,0.150366]
[1721407363044,0.03302089,66523.0,66504.0,0.30474774]
[1721407363045,0.03902026,66522.0,66504.0,0.30474774]
[1721407363631,0.03902026,66522.0,66505.0,0.00279399]
[1721407364288,0.014,66522.0,66505.0,0.00279399]
[1721407365294,0.014,66522.0,66509.0,0.07717479]
[1721407365533,0.028,66522.0,66511.0,0.15035]
[1721407365642,0.028,66522.0,66512.0,0.00279399]
[1721407365643,0.014,66522.0,66512.0,0.00279399]
[1721407366083,0.028,66522.0,66512.0,0.00279399]
[1721407366281,0.014,66522.0,66512.0,0.00279399]
[1721407366486,0.1087,66524.0,66512.0,0.00279399]
[1721407366708,0.014,66522.0,66512.0,0.00279399]
[1721407366925,0.028,66522.0,66506.0,0.00279399]
[1721407367276,0.028,66522.0,66506.0,0.30753673]
[1721407367481,0.014,66522.0,66506.0,0.30753673]
[1721407367836,0.03438,66522.0,66506.0,0.30753673]
[1721407368410,0.02038,66522.0,66506.0,0.30753673]
[1721407368854,0.03438,66522.0,66506.0,0.30753673]
[1721407369054,0.02038,66522.0,66506.0,0.30753673]
[1721407369226,0.12219884,66524.0,66508.0,0.150357]
[1721407369425,0.014,66522.0,66509.0,0.15314899]
[1721407369718,0.014,66522.0,66509.0,0.00279399]
[1721407369893,0.026,66522.0,66510.0,0.15438174]
[1721407370162,0.012,66522.0,66512.0,0.150347]
[1721407370277,0.012,66522.0,66513.0,0.00279399]
[1721407370484,0.13619884,66524.0,66513.0,0.00279399]
[1721407370685,0.012,66522.0,66513.0,0.00279399]
[1721407371215,0.012,66522.0,66510.0,0.30473374]
[1721407371216,0.012,66522.0,66511.0,0.00279399]
[1721407371417,0.012,66522.0,66511.0,0.15717573]
[1721407371987,0.014,66522.0,66511.0,0.15717573]
[1721407372387,0.026,66522.0,66511.0,0.15717573]
[1721407372741,0.04,66522.0,66511.0,0.15717573]
[1721407373036,0.028,66522.0,66511.0,0.15717573]
[1721407373201,0.04,66522.0,66511.0,0.30752573]
[1721407374631,0.04,66522.0,66511.0,0.15717573]
[1721407374828,0.04,66522.0,66513.0,0.15313899]
[1721407375031,0.04,66522.0,66514.0,0.150344]
[1721407375230,0.04,66522.0,66513.0,0.00279399]
[1721407375404,0.04,66522.0,66514.0,0.150343]
[1721407375753,0.04,66522.0,66515.0,0.15313399]
[1721407375754,0.028,66522.0,66515.0,0.15313399]
[1721407376006,0.01349884,66524.0,66516.0,0.45505874]
[1721407376145,0.01349884,66524.0,66519.0,0.150332]
[1721407376146,0.012,66522.0,66519.0,0.150332]
[1721407376331,0.026,66522.0,66520.0,0.00279399]
[1721407376537,0.026,66522.0,66513.0,0.150345]
[1721407376538,0.014,66522.0,66513.0,0.150345]
[1721407376910,0.028,66522.0,66514.0,0.00279399]
[1721407377052,0.04,66522.0,66514.0,0.00279399]
[1721407377286,0.04,66522.0,66514.0,0.15313699]
[1721407377493,0.04,66522.0,66514.0,0.00279399]
[1721407378228,0.012,66522.0,66514.0,0.15313699]
[1721407378396,0.012,66522.0,66514.0,0.00279399]
[1721407378594,0.012,66522.0,66520.0,0.001]
[1721407378872,0.0799,66532.0,66515.0,0.00279399]
[1721407379271,0.004,66522.0,66515.0,0.00279399]
[1721407379967,0.003,66522.0,66516.0,0.300679]
[1721407380241,0.003,66522.0,66521.0,0.150328]
[1721407380478,0.003,66522.0,66521.0,0.60536574]
[1721407380728,0.003,66522.0,66521.0,1.38947774]
[1721407380995,0.003,66522.0,66521.0,1.08882174]
[1721407381236,0.013,66532.0,66522.0,0.300649]
[1721407381490,0.47404066,66537.0,66530.0,0.150307]
[1721407381694,0.47404066,66537.0,66531.0,0.00279399]
[1721407382081,0.47404066,66537.0,66530.0,0.00279399]
[1721407382296,0.47404066,66537.0,66532.0,0.150302]
[1721407382493,0.47404066,66537.0,66531.0,0.30061]
[1721407382717,0.006,66532.0,66531.0,0.30061]
[1721407382850,0.006,66532.0,66531.0,0.751526]
[1721407383052,0.48804066,66537.0,66536.0,0.150294]
[1721407383691,0.48804066,66537.0,66536.0,0.450883]
[1721407383862,0.48804066,66537.0,66536.0,0.90585374]
[1721407383863,0.47404066,66537.0,66536.0,0.90585374]
[1721407384360,0.48804066,66537.0,66536.0,0.90685374]
[1721407384584,0.50004066,66537.0,66536.0,0.90685374]
[1721407384982,0.48804066,66537.0,66536.0,0.90685374]
[1721407385183,0.48804066,66537.0,66536.0,0.60626474]
[1721407385452,0.48904066,66537.0,66536.0,0.61126474]
[1721407385671,0.47504066,66537.0,66536.0,0.61026474]
[1721407385922,0.47504066,66537.0,66536.0,0.61226474]
[1721407386354,0.47504066,66537.0,66536.0,0.91085374]
[1721407386556,0.47404066,66537.0,66536.0,0.90585374]
[1721407386768,0.47404066,66537.0,66536.0,0.15638174]
[1721407386978,0.47404066,66537.0,66536.0,0.90585374]
[1721407387378,0.47404066,66537.0,66536.0,0.90785374]
[1721407387555,0.47404066,66537.0,66536.0,0.90585374]
[1721407388319,0.47404066,66537.0,66536.0,0.15738174]
[1721407388521,0.47404066,66537.0,66536.0,0.30767574]
[1721407388890,0.47404066,66537.0,66536.0,0.30467574]
[1721407389094,0.47404066,66537.0,66536.0,0.15738174]
[1721407389296,0.47404066,66537.0,66536.0,0.003]
[1721407389495,0.47404066,66537.0,66536.0,0.153294]
[1721407389719,0.47404066,66537.0,66536.0,0.150294]
[1721407389932,0.47404066,66537.0,66536.0,0.452883]
[1721407390124,0.47404066,66537.0,66536.0,0.153294]
[1721407390508,0.47404066,66537.0,66536.0,0.90885374]
[1721407390712,0.47404066,66537.0,66536.0,1.20844274]
[1721407391313,0.47404066,66537.0,66536.0,0.90785374]
[1721407391884,0.47404066,66537.0,66536.0,0.90585374]
[1721407392209,0.47404066,66537.0,66536.0,0.90785374]
[1721407392824,0.47404066,66537.0,66536.0,0.90585374]
[1721407393027,0.47404066,66537.0,66536.0,0.90785374]
[1721407393454,0.47404066,66537.0,66536.0,0.30667574]
[1721407393613,0.47404066,66537.0,66536.0,0.60726474]
[1721407393828,0.47404066,66537.0,66536.0,0.60826474]
[1721407394245,0.47404066,66537.0,66536.0,0.60926474]
[1721407395560,0.47404066,66537.0,66536.0,0.90985374]
[1721407396633,0.47404066,66537.0,66536.0,0.60926474]
[1721407397450,0.47404066,66537.0,66536.0,0.004]
[1721407397654,0.47404066,66537.0,66536.0,0.60926474]
[1721407398236,0.47404066,66537.0,66536.0,0.30867574]
[1721407398517,0.47404066,66537.0,66536.0,0.15838174]
[1721407398751,0.47404066,66537.0,66536.0,0.30467574]
[1721407398920,0.47404066,66537.0,66536.0,0.30567574]
[1721407399485,0.47404066,66537.0,66536.0,0.30467574]
[1721407399687,0.47404066,66537.0,66536.0,0.15638174]
[1721407400106,0.47404066,66537.0,66536.0,0.30667574]
[1721407400307,0.47404066,66537.0,66536.0,0.15638174]
[1721407400511,0.47404066,66537.0,66536.0,0.15738174]
[1721407401356,0.47404066,66537.0,66536.0,0.002]
[1721407401755,0.47404066,66537.0,66533.0,0.1503]
[1721407401957,0.47404066,66537.0,66534.0,0.15438174]
[1721407402154,0.47404066,66537.0,66536.0,0.002]
[1721407402585,0.47404066,66537.0,66531.0,0.00279399]
[1721407402783,0.13510407,66536.0,66531.0,0.00279399]